[Event "*** Titled Tuesday Blitz"]
[Site "Chess.com"]
[Date "2020.05.05"]
[Round "2"]
[White "Atanejhad"]
[Black "ChessBitl"]
[Result "0-1"]
[WhiteElo "2474"]
[BlackElo "2286"]
[TimeControl "180+1"]
[EndTime "10:19:01 PDT"]
[Termination "ChessBitl won on time"]

1. e4 {[%clk 0:03:00.9]} 1... c5 {[%clk 0:02:59.9]} 2. Nf3 {[%clk 0:02:57.3]}
2... Nc6 {[%clk 0:03:00.3]} 3. c3 {[%clk 0:02:56.5]} 3... Nf6 {[%clk 0:02:59.3]}
4. e5 {[%clk 0:02:56.4]} 4... Nd5 {[%clk 0:02:59.8]} 5. Bc4 {[%clk 0:02:56.7]}
5... Nb6 {[%clk 0:02:59.3]} 6. Bb3 {[%clk 0:02:54.5]} 6... d6 {[%clk 0:02:59.4]}
7. exd6 {[%clk 0:02:51.7]} 7... Qxd6 {[%clk 0:02:59.3]} 8. O-O {[%clk
0:02:51.1]} 8... Bf5 {[%clk 0:02:57.6]} 9. d4 {[%clk 0:02:45.9]} 9... cxd4
{[%clk 0:02:54.4]} 10. Nxd4 {[%clk 0:02:37.4]} 10... Nxd4 {[%clk 0:02:49.8]} 11.
cxd4 {[%clk 0:02:34.2]} 11... e6 {[%clk 0:02:50]} 12. Nc3 {[%clk 0:02:33.1]}
12... a6 {[%clk 0:02:47]} 13. Qf3 {[%clk 0:02:25.8]} 13... Be7 {[%clk
0:02:32.9]} 14. Qxb7 {[%clk 0:02:15.3]} 14... O-O {[%clk 0:02:32.1]} 15. Be3
{[%clk 0:02:10.3]} 15... a5 {[%clk 0:02:27.1]} 16. Nb5 {[%clk 0:02:06.7]} 16...
Qd8 {[%clk 0:02:19.1]} 17. a4 {[%clk 0:01:52.1]} 17... Nd5 {[%clk 0:01:59]} 18.
Bxd5 {[%clk 0:01:46.1]} 18... exd5 {[%clk 0:01:58]} 19. Bf4 {[%clk 0:01:40.5]}
19... Bf6 {[%clk 0:01:24.4]} 20. Be5 {[%clk 0:01:20.9]} 20... Bxe5 {[%clk
0:01:20.2]} 21. dxe5 {[%clk 0:01:21.8]} 21... d4 {[%clk 0:01:20.1]} 22. Nd6
{[%clk 0:01:16.9]} 22... Be6 {[%clk 0:01:15.3]} 23. Rfd1 {[%clk 0:01:09.5]}
23... Rb8 {[%clk 0:01:14.6]} 24. Qe4 {[%clk 0:00:59]} 24... Rxb2 {[%clk
0:01:13.5]} 25. Rxd4 {[%clk 0:00:53.3]} 25... Qb6 {[%clk 0:01:12.8]} 26. Rad1
{[%clk 0:00:52.5]} 26... Rb8 {[%clk 0:01:07.7]} 27. h4 {[%clk 0:00:50.1]} 27...
h6 {[%clk 0:01:06.4]} 28. Nf5 {[%clk 0:00:37.6]} 28... Rb4 {[%clk 0:00:57]} 29.
Kh2 {[%clk 0:00:19.4]} 29... Bxf5 {[%clk 0:00:53.4]} 30. Rxb4 {[%clk 0:00:16.7]}
30... Bxe4 {[%clk 0:00:52.3]} 31. Rxb6 {[%clk 0:00:08.9]} 31... Rxb6 {[%clk
0:00:52.6]} 32. Rd8+ {[%clk 0:00:09.3]} 32... Kh7 {[%clk 0:00:51.3]} 33. Rd4
{[%clk 0:00:07.8]} 33... Bc6 {[%clk 0:00:43.8]} 34. Rd6 {[%clk 0:00:07.1]} 34...
Ra6 {[%clk 0:00:41.9]} 35. f4 {[%clk 0:00:07.2]} 35... g6 {[%clk 0:00:36.7]} 36.
h5 {[%clk 0:00:06.8]} 36... gxh5 {[%clk 0:00:29.4]} 37. g3 {[%clk 0:00:06.6]}
37... Kg7 {[%clk 0:00:28.4]} 38. Kh3 {[%clk 0:00:04.9]} 38... Bb7 {[%clk
0:00:25.2]} 39. Rd8 {[%clk 0:00:05]} 39... Be4 {[%clk 0:00:23.3]} 40. Kh4 {[%clk
0:00:04]} 40... Rg6 {[%clk 0:00:20.4]} 41. Rd6 {[%clk 0:00:00.8]} 41... Rg4+
{[%clk 0:00:13.7]} 0-1

[Event "*** Titled Tuesday Blitz"]
[Site "Chess.com"]
[Date "2020.05.05"]
[Round "2"]
[White "chessplayer9919"]
[Black "ajdemipopushi"]
[Result "1/2-1/2"]
[WhiteElo "2466"]
[BlackElo "2265"]
[TimeControl "180+1"]
[EndTime "10:19:03 PDT"]
[Termination "Game drawn by repetition"]

1. d4 {[%clk 0:03:00.9]} 1... Nf6 {[%clk 0:02:59]} 2. c4 {[%clk 0:03:00.9]} 2...
c5 {[%clk 0:02:59.4]} 3. d5 {[%clk 0:03:00.1]} 3... b5 {[%clk 0:02:59.7]} 4.
cxb5 {[%clk 0:03:00.1]} 4... a6 {[%clk 0:03:00.1]} 5. b6 {[%clk 0:02:59.2]} 5...
Qxb6 {[%clk 0:03:00]} 6. Nc3 {[%clk 0:02:59.4]} 6... g6 {[%clk 0:03:00.6]} 7. e4
{[%clk 0:02:52]} 7... d6 {[%clk 0:03:01.1]} 8. Bd3 {[%clk 0:02:49.2]} 8... Bg7
{[%clk 0:03:00.9]} 9. Nf3 {[%clk 0:02:48.9]} 9... Bg4 {[%clk 0:03:00.2]} 10. O-O
{[%clk 0:02:48.2]} 10... Nbd7 {[%clk 0:02:59.3]} 11. h3 {[%clk 0:02:41.6]} 11...
Bxf3 {[%clk 0:02:59.6]} 12. Qxf3 {[%clk 0:02:42.5]} 12... O-O {[%clk 0:03:00.1]}
13. Qe2 {[%clk 0:02:38.2]} 13... Rfb8 {[%clk 0:02:57.8]} 14. Kh1 {[%clk
0:02:31.1]} 14... Ne8 {[%clk 0:02:55.6]} 15. f4 {[%clk 0:02:28.6]} 15... Nc7
{[%clk 0:02:54]} 16. a4 {[%clk 0:02:14.2]} 16... Qb4 {[%clk 0:02:50.6]} 17. a5
{[%clk 0:02:09.4]} 17... Bxc3 {[%clk 0:02:29.4]} 18. bxc3 {[%clk 0:02:06]} 18...
Qxc3 {[%clk 0:02:29.7]} 19. Bd2 {[%clk 0:01:57.7]} 19... Qd4 {[%clk 0:02:26.1]}
20. Rfb1 {[%clk 0:01:54.9]} 20... Nb5 {[%clk 0:02:18.8]} 21. Be3 {[%clk
0:01:35.2]} 21... Qg7 {[%clk 0:02:12.7]} 22. Qd2 {[%clk 0:00:53.5]} 22... h5
{[%clk 0:02:03.4]} 23. Kh2 {[%clk 0:00:38.9]} 23... Nc3 {[%clk 0:01:55.3]} 24.
Rxb8+ {[%clk 0:00:38.2]} 24... Rxb8 {[%clk 0:01:55]} 25. Rc1 {[%clk 0:00:35.1]}
25... Nb5 {[%clk 0:01:50.3]} 26. Rb1 {[%clk 0:00:35.4]} 26... Qc3 {[%clk
0:01:23.8]} 27. Rxb5 {[%clk 0:00:31.6]} 27... Qa1 {[%clk 0:00:59.4]} 28. Rxb8+
{[%clk 0:00:30.4]} 28... Nxb8 {[%clk 0:00:59.6]} 29. e5 {[%clk 0:00:19.4]} 29...
dxe5 {[%clk 0:00:56.9]} 30. Bxc5 {[%clk 0:00:19.9]} 30... exf4 {[%clk 0:00:54]}
31. Qxf4 {[%clk 0:00:18.8]} 31... Nd7 {[%clk 0:00:54.2]} 32. Bxe7 {[%clk
0:00:19]} 32... Qc3 {[%clk 0:00:49]} 33. Be2 {[%clk 0:00:13.4]} 33... Qxa5
{[%clk 0:00:45.6]} 34. Qd6 {[%clk 0:00:12.6]} 34... Qa4 {[%clk 0:00:43.3]} 35.
Bf3 {[%clk 0:00:08.6]} 35... a5 {[%clk 0:00:40.6]} 36. Bg5 {[%clk 0:00:07.6]}
36... Kg7 {[%clk 0:00:37.8]} 37. Qc6 {[%clk 0:00:05.8]} 37... Qd4 {[%clk
0:00:28.8]} 38. Qxd7 {[%clk 0:00:02.6]} 38... Qe5+ {[%clk 0:00:28.9]} 39. g3
{[%clk 0:00:03.2]} 39... Qxg5 {[%clk 0:00:29]} 40. d6 {[%clk 0:00:03.8]} 40...
Qd2+ {[%clk 0:00:28.7]} 41. Bg2 {[%clk 0:00:03.5]} 41... a4 {[%clk 0:00:29.2]}
42. Qe7 {[%clk 0:00:03.5]} 42... a3 {[%clk 0:00:28.6]} 43. d7 {[%clk 0:00:03.1]}
43... a2 {[%clk 0:00:28.6]} 44. Qe5+ {[%clk 0:00:03.3]} 44... Kh7 {[%clk
0:00:27.6]} 45. Qd5 {[%clk 0:00:01.4]} 45... Qxd5 {[%clk 0:00:27]} 46. Bxd5
{[%clk 0:00:02.3]} 46... a1=Q {[%clk 0:00:27.7]} 47. d8=Q {[%clk 0:00:02.8]}
47... Qd4 {[%clk 0:00:26.7]} 48. Qd7 {[%clk 0:00:01.9]} 48... Qd2+ {[%clk
0:00:26.4]} 49. Kg1 {[%clk 0:00:02.2]} 49... Qd1+ {[%clk 0:00:26.8]} 50. Kf2
{[%clk 0:00:02.4]} 50... Qd2+ {[%clk 0:00:27.4]} 51. Kf3 {[%clk 0:00:02.9]}
51... Qd3+ {[%clk 0:00:27.5]} 52. Kf4 {[%clk 0:00:03.3]} 52... Qd4+ {[%clk
0:00:27.8]} 53. Kf3 {[%clk 0:00:01.1]} 53... Qd3+ {[%clk 0:00:27.4]} 54. Kf2
{[%clk 0:00:01.6]} 54... Qd2+ {[%clk 0:00:27.8]} 55. Kf3 {[%clk 0:00:02.2]}
55... Qd3+ {[%clk 0:00:28.3]} 1/2-1/2

[Event "*** Titled Tuesday Blitz"]
[Site "Chess.com"]
[Date "2020.05.05"]
[Round "2"]
[White "Caterpiller35"]
[Black "MartinCerveny"]
[Result "0-1"]
[WhiteElo "2298"]
[BlackElo "2579"]
[TimeControl "180+1"]
[EndTime "10:19:04 PDT"]
[Termination "MartinCerveny won on time"]

1. d4 {[%clk 0:03:00]} 1... d5 {[%clk 0:02:59.7]} 2. Bf4 {[%clk 0:03:00]} 2...
e6 {[%clk 0:02:58.6]} 3. e3 {[%clk 0:03:00.3]} 3... Bd6 {[%clk 0:02:58.6]} 4.
Bg3 {[%clk 0:03:00.6]} 4... Nf6 {[%clk 0:02:57.1]} 5. Nd2 {[%clk 0:02:58.8]}
5... Nbd7 {[%clk 0:02:57]} 6. Ngf3 {[%clk 0:02:57.2]} 6... b6 {[%clk 0:02:57]}
7. Bd3 {[%clk 0:02:56.3]} 7... Bb7 {[%clk 0:02:57]} 8. Ne5 {[%clk 0:02:56.2]}
8... O-O {[%clk 0:02:55.2]} 9. Qf3 {[%clk 0:02:51.9]} 9... Qe7 {[%clk
0:02:53.1]} 10. O-O {[%clk 0:02:42.7]} 10... Rfe8 {[%clk 0:02:52.5]} 11. Rfe1
{[%clk 0:02:42.5]} 11... c5 {[%clk 0:02:47.8]} 12. c3 {[%clk 0:02:42.3]} 12...
Rac8 {[%clk 0:02:47.5]} 13. Bb5 {[%clk 0:02:33.2]} 13... a6 {[%clk 0:02:34.5]}
14. Ba4 {[%clk 0:02:07.4]} 14... b5 {[%clk 0:02:34]} 15. Bc2 {[%clk 0:02:05.9]}
15... b4 {[%clk 0:02:33.6]} 16. Nxd7 {[%clk 0:01:32]} 16... Qxd7 {[%clk
0:02:31.1]} 17. Bh4 {[%clk 0:01:24.7]} 17... Be7 {[%clk 0:02:31]} 18. Qh3 {[%clk
0:01:15.9]} 18... h6 {[%clk 0:02:25.2]} 19. Nf3 {[%clk 0:01:15.4]} 19... Ne4
{[%clk 0:02:08.2]} 20. Bxe4 {[%clk 0:01:11.8]} 20... dxe4 {[%clk 0:02:07.4]} 21.
Ne5 {[%clk 0:01:12]} 21... Qc7 {[%clk 0:02:04.2]} 22. Bxe7 {[%clk 0:01:04.9]}
22... Rxe7 {[%clk 0:02:03.8]} 23. c4 {[%clk 0:00:56.2]} 23... Rd8 {[%clk
0:01:36.4]} 24. Red1 {[%clk 0:00:51]} 24... cxd4 {[%clk 0:01:32.4]} 25. exd4
{[%clk 0:00:51.9]} 25... f6 {[%clk 0:01:29.8]} 26. Ng6 {[%clk 0:00:51]} 26...
Ree8 {[%clk 0:01:25.5]} 27. Rac1 {[%clk 0:00:48.8]} 27... Kh7 {[%clk 0:01:20.6]}
28. Qh5 {[%clk 0:00:34]} 28... a5 {[%clk 0:01:05.6]} 29. Nh4 {[%clk 0:00:31.3]}
29... Qf4 {[%clk 0:00:59.4]} 30. Qg6+ {[%clk 0:00:29.5]} 30... Kh8 {[%clk
0:00:58.7]} 31. g3 {[%clk 0:00:29.2]} 31... Qg5 {[%clk 0:00:52.1]} 32. Rc2
{[%clk 0:00:10.5]} 32... Re7 {[%clk 0:00:49]} 33. Qxg5 {[%clk 0:00:09.7]} 33...
hxg5 {[%clk 0:00:46.8]} 34. Ng6+ {[%clk 0:00:10]} 34... Kh7 {[%clk 0:00:45.5]}
35. Nxe7 {[%clk 0:00:10.9]} 35... Rd7 {[%clk 0:00:45.6]} 36. d5 {[%clk 0:00:11]}
36... Rxe7 {[%clk 0:00:44.5]} 37. d6 {[%clk 0:00:11.2]} 37... Rd7 {[%clk
0:00:44.5]} 38. c5 {[%clk 0:00:11.6]} 38... Bc6 {[%clk 0:00:44.6]} 39. Rd4
{[%clk 0:00:11.6]} 39... f5 {[%clk 0:00:44.2]} 40. Kf1 {[%clk 0:00:11.9]} 40...
Kg6 {[%clk 0:00:44.4]} 41. Ke2 {[%clk 0:00:12.2]} 41... Kf6 {[%clk 0:00:44.6]}
42. Ke3 {[%clk 0:00:12.6]} 42... e5 {[%clk 0:00:43]} 43. Rd1 {[%clk 0:00:12.1]}
43... f4+ {[%clk 0:00:43]} 44. Ke2 {[%clk 0:00:10.1]} 44... Ke6 {[%clk
0:00:42.6]} 45. h4 {[%clk 0:00:09.2]} 45... g4 {[%clk 0:00:41.2]} 46. a3 {[%clk
0:00:07.7]} 46... b3 {[%clk 0:00:38.9]} 47. Rc3 {[%clk 0:00:07.1]} 47... a4
{[%clk 0:00:39]} 48. Rc4 {[%clk 0:00:07.5]} 48... Bb5 {[%clk 0:00:39.1]} 49. Rc1
{[%clk 0:00:06.4]} 49... Kd5 {[%clk 0:00:35.7]} 50. c6 {[%clk 0:00:06.6]} 50...
Rxd6 {[%clk 0:00:35.9]} 51. c7 {[%clk 0:00:06.4]} 51... Rc6 {[%clk 0:00:35.8]}
0-1

[Event "*** Titled Tuesday Blitz"]
[Site "Chess.com"]
[Date "2020.05.05"]
[Round "2"]
[White "gemarin"]
[Black "FranciscodelaF"]
[Result "0-1"]
[WhiteElo "1942"]
[BlackElo "2354"]
[TimeControl "180+1"]
[EndTime "10:19:04 PDT"]
[Termination "FranciscodelaF won on time"]

1. d4 {[%clk 0:03:00.9]} 1... Nf6 {[%clk 0:02:55.5]} 2. c4 {[%clk 0:02:59.1]}
2... e6 {[%clk 0:02:54.7]} 3. Nf3 {[%clk 0:02:56.6]} 3... d5 {[%clk 0:02:54.7]}
4. Nc3 {[%clk 0:02:55.6]} 4... Be7 {[%clk 0:02:54.1]} 5. Bg5 {[%clk 0:02:51.1]}
5... Nbd7 {[%clk 0:02:53.2]} 6. e3 {[%clk 0:02:42.6]} 6... h6 {[%clk 0:02:20.4]}
7. Bh4 {[%clk 0:02:41.4]} 7... O-O {[%clk 0:02:20]} 8. Bd3 {[%clk 0:02:38.6]}
8... dxc4 {[%clk 0:02:13.2]} 9. Bxc4 {[%clk 0:02:37.8]} 9... b6 {[%clk 0:02:12]}
10. O-O {[%clk 0:02:31.7]} 10... Bb7 {[%clk 0:02:11.9]} 11. Qe2 {[%clk 0:02:30]}
11... Ne4 {[%clk 0:02:11.7]} 12. Bxe7 {[%clk 0:02:14.5]} 12... Nxc3 {[%clk
0:02:03.8]} 13. bxc3 {[%clk 0:02:11.1]} 13... Qxe7 {[%clk 0:01:58.1]} 14. Ba6
{[%clk 0:02:04.8]} 14... Rab8 {[%clk 0:01:44.7]} 15. Bxb7 {[%clk 0:02:03.5]}
15... Rxb7 {[%clk 0:01:45.6]} 16. Qa6 {[%clk 0:02:02.3]} 16... Rfb8 {[%clk
0:01:41.1]} 17. Rfd1 {[%clk 0:01:51.9]} 17... c5 {[%clk 0:01:32.8]} 18. a4
{[%clk 0:01:43.3]} 18... Nf6 {[%clk 0:01:20.2]} 19. Ne5 {[%clk 0:01:40.7]} 19...
Qc7 {[%clk 0:01:10.7]} 20. c4 {[%clk 0:01:36]} 20... cxd4 {[%clk 0:01:04.5]} 21.
exd4 {[%clk 0:01:35.2]} 21... Nd7 {[%clk 0:01:01.7]} 22. Nf3 {[%clk 0:01:28.8]}
22... Rc8 {[%clk 0:00:54.6]} 23. Rac1 {[%clk 0:01:26.7]} 23... Rbb8 {[%clk
0:00:44.5]} 24. h3 {[%clk 0:01:20.6]} 24... Qc6 {[%clk 0:00:41.9]} 25. d5 {[%clk
0:00:42.7]} 25... exd5 {[%clk 0:00:39.5]} 26. cxd5 {[%clk 0:00:39.9]} 26... Qxc1
{[%clk 0:00:39.8]} 27. Rxc1 {[%clk 0:00:39.4]} 27... Rxc1+ {[%clk 0:00:40.7]}
28. Kh2 {[%clk 0:00:39.7]} 28... Rc7 {[%clk 0:00:39]} 29. d6 {[%clk 0:00:35.4]}
29... Rcb7 {[%clk 0:00:39.4]} 30. Qb5 {[%clk 0:00:31.3]} 30... Nc5 {[%clk
0:00:40.3]} 31. Ne5 {[%clk 0:00:29.8]} 31... f6 {[%clk 0:00:31.8]} 32. Qc4+
{[%clk 0:00:20.3]} 32... Kh7 {[%clk 0:00:31.5]} 33. Qc2+ {[%clk 0:00:18.9]}
33... Kh8 {[%clk 0:00:31]} 34. Nc6 {[%clk 0:00:12.7]} 34... Re8 {[%clk 0:00:30]}
35. Qg6 {[%clk 0:00:10.9]} 35... Rf8 {[%clk 0:00:26.7]} 36. Ne7 {[%clk
0:00:09.6]} 36... Rd8 {[%clk 0:00:24.1]} 37. Nf5 {[%clk 0:00:09]} 37... Ne6
{[%clk 0:00:20.9]} 38. Qg4 {[%clk 0:00:07.5]} 38... Ng5 {[%clk 0:00:19.4]} 39.
h4 {[%clk 0:00:07.2]} 39... Nh7 {[%clk 0:00:18]} 40. h5 {[%clk 0:00:06.4]} 40...
Rbd7 {[%clk 0:00:18.2]} 41. f4 {[%clk 0:00:05.8]} 41... Nf8 {[%clk 0:00:18.3]}
42. Qf3 {[%clk 0:00:04.9]} 42... Ne6 {[%clk 0:00:18.4]} 43. Qe4 {[%clk
0:00:03.9]} 43... Nc5 {[%clk 0:00:18.4]} 44. Qc4 {[%clk 0:00:03.7]} 44... a6
{[%clk 0:00:17.5]} 45. a5 {[%clk 0:00:03.4]} 45... Nb7 {[%clk 0:00:16.4]} 46.
axb6 {[%clk 0:00:03.1]} 46... Nxd6 {[%clk 0:00:16.8]} 47. Nxd6 {[%clk
0:00:01.4]} 47... Rxd6 {[%clk 0:00:17.7]} 48. b7 {[%clk 0:00:01.8]} 48... Rb8
{[%clk 0:00:17.6]} 49. Qc7 {[%clk 0:00:01.1]} 49... Rdd8 {[%clk 0:00:17.8]} 50.
Kg3 {[%clk 0:00:01]} 50... Re8 {[%clk 0:00:17.5]} 51. Kg4 {[%clk 0:00:01.2]}
51... a5 {[%clk 0:00:18.1]} 0-1

[Event "*** Titled Tuesday Blitz"]
[Site "Chess.com"]
[Date "2020.05.05"]
[Round "2"]
[White "ValeriyGrinev"]
[Black "nubair1198"]
[Result "1/2-1/2"]
[WhiteElo "2528"]
[BlackElo "2757"]
[TimeControl "180+1"]
[EndTime "10:19:06 PDT"]
[Termination "Game drawn - insufficient material"]

1. d4 {[%clk 0:03:00.9]} 1... d5 {[%clk 0:02:59.5]} 2. c4 {[%clk 0:03:01.1]}
2... c6 {[%clk 0:03:00]} 3. cxd5 {[%clk 0:03:00.6]} 3... cxd5 {[%clk 0:03:00.9]}
4. Nc3 {[%clk 0:03:01.2]} 4... Nc6 {[%clk 0:03:01]} 5. Nf3 {[%clk 0:03:00.1]}
5... Nf6 {[%clk 0:03:00.8]} 6. Bf4 {[%clk 0:02:59.5]} 6... Ne4 {[%clk
0:03:01.2]} 7. e3 {[%clk 0:02:54.9]} 7... Nxc3 {[%clk 0:03:01.4]} 8. bxc3 {[%clk
0:02:55.8]} 8... e6 {[%clk 0:03:01.9]} 9. Bd3 {[%clk 0:02:53.8]} 9... Bd6 {[%clk
0:03:02.4]} 10. Bxd6 {[%clk 0:02:53.2]} 10... Qxd6 {[%clk 0:03:03.3]} 11. O-O
{[%clk 0:02:53.6]} 11... O-O {[%clk 0:03:03.2]} 12. c4 {[%clk 0:02:53.9]} 12...
dxc4 {[%clk 0:03:03.3]} 13. Bxc4 {[%clk 0:02:54.8]} 13... b6 {[%clk 0:03:04.1]}
14. Rc1 {[%clk 0:02:51.7]} 14... Bb7 {[%clk 0:03:04.4]} 15. Qe2 {[%clk
0:02:51.9]} 15... Rac8 {[%clk 0:03:04.9]} 16. Ba6 {[%clk 0:02:51]} 16... Rc7
{[%clk 0:02:57.2]} 17. Bxb7 {[%clk 0:02:48.8]} 17... Rxb7 {[%clk 0:02:58.1]} 18.
Rc3 {[%clk 0:02:36.8]} 18... Rc7 {[%clk 0:02:55.4]} 19. Rfc1 {[%clk 0:02:36.8]}
19... Rfc8 {[%clk 0:02:55.5]} 20. Qb2 {[%clk 0:02:24.4]} 20... Ne7 {[%clk
0:02:31.8]} 21. Ne5 {[%clk 0:02:19.3]} 21... Nd5 {[%clk 0:02:30.4]} 22. Rxc7
{[%clk 0:02:18.9]} 22... Rxc7 {[%clk 0:02:31.3]} 23. h3 {[%clk 0:02:15.1]} 23...
f6 {[%clk 0:02:29.7]} 24. Nd3 {[%clk 0:02:11]} 24... Kf7 {[%clk 0:02:26]} 25.
Rc2 {[%clk 0:02:00.9]} 25... Rxc2 {[%clk 0:02:18]} 26. Qxc2 {[%clk 0:02:01]}
26... Qc7 {[%clk 0:02:18.6]} 27. Qxc7+ {[%clk 0:01:59.1]} 27... Nxc7 {[%clk
0:02:19.5]} 28. Kf1 {[%clk 0:01:59.5]} 28... Ke7 {[%clk 0:02:15.2]} 29. Ke2
{[%clk 0:01:59.7]} 29... Kd6 {[%clk 0:02:14.7]} 30. Kd2 {[%clk 0:01:51.9]} 30...
e5 {[%clk 0:02:06.9]} 31. dxe5+ {[%clk 0:01:51.6]} 31... fxe5 {[%clk 0:02:07.8]}
32. e4 {[%clk 0:01:48.9]} 32... Ne6 {[%clk 0:02:03.8]} 33. Ke3 {[%clk
0:01:45.6]} 33... g5 {[%clk 0:02:02]} 34. g3 {[%clk 0:01:44.1]} 34... a5 {[%clk
0:01:51.7]} 35. Ne1 {[%clk 0:01:35.3]} 35... b5 {[%clk 0:01:39.2]} 36. Nf3
{[%clk 0:01:31]} 36... b4 {[%clk 0:01:31.8]} 37. Kd3 {[%clk 0:01:27.9]} 37...
Nc5+ {[%clk 0:01:28.5]} 38. Ke3 {[%clk 0:01:24.9]} 38... h6 {[%clk 0:01:27.5]}
39. Nd2 {[%clk 0:01:24.1]} 39... a4 {[%clk 0:01:23.6]} 40. Nc4+ {[%clk 0:01:23]}
40... Ke6 {[%clk 0:01:24]} 41. f3 {[%clk 0:01:17.2]} 41... a3 {[%clk 0:00:49.5]}
42. Kd2 {[%clk 0:00:49.8]} 42... b3 {[%clk 0:00:47.3]} 43. Nxa3 {[%clk
0:00:49.7]} 43... bxa2 {[%clk 0:00:47.4]} 44. Nc2 {[%clk 0:00:49.9]} 44... Nb3+
{[%clk 0:00:23.9]} 45. Kc3 {[%clk 0:00:50]} 45... Nd4 {[%clk 0:00:24.4]} 46. Na1
{[%clk 0:00:47.6]} 46... Nxf3 {[%clk 0:00:23.1]} 47. Kb2 {[%clk 0:00:46.3]}
47... h5 {[%clk 0:00:22.5]} 48. Nc2 {[%clk 0:00:46]} 48... Nd2 {[%clk
0:00:21.5]} 49. Ne3 {[%clk 0:00:40.7]} 49... Nxe4 {[%clk 0:00:21.2]} 50. g4
{[%clk 0:00:41.2]} 50... h4 {[%clk 0:00:20.9]} 51. Kxa2 {[%clk 0:00:41.4]} 51...
Nf2 {[%clk 0:00:21.3]} 52. Kb2 {[%clk 0:00:40.8]} 52... Nxh3 {[%clk 0:00:21.8]}
53. Kc3 {[%clk 0:00:41.4]} 53... Nf2 {[%clk 0:00:20.9]} 54. Kd2 {[%clk
0:00:41.1]} 54... h3 {[%clk 0:00:21.4]} 55. Nf1 {[%clk 0:00:38.6]} 55... Nxg4
{[%clk 0:00:21.8]} 56. Ke2 {[%clk 0:00:39.5]} 56... Kf5 {[%clk 0:00:20.5]} 57.
Kf3 {[%clk 0:00:39.4]} 57... h2 {[%clk 0:00:18.5]} 58. Ng3+ {[%clk 0:00:38.6]}
58... Ke6 {[%clk 0:00:17.5]} 59. Kxg4 {[%clk 0:00:39.5]} 59... e4 {[%clk
0:00:17.1]} 60. Kh3 {[%clk 0:00:39.9]} 60... Ke5 {[%clk 0:00:13.4]} 61. Kxh2
{[%clk 0:00:40.2]} 61... Kf4 {[%clk 0:00:14.1]} 62. Kg2 {[%clk 0:00:40.3]} 62...
Ke3 {[%clk 0:00:14]} 63. Nf5+ {[%clk 0:00:39.5]} 63... Kd2 {[%clk 0:00:14]} 64.
Kg3 {[%clk 0:00:39]} 64... Kd3 {[%clk 0:00:13.4]} 65. Kg4 {[%clk 0:00:38.8]}
65... e3 {[%clk 0:00:14.3]} 66. Nxe3 {[%clk 0:00:38.4]} 66... Kxe3 {[%clk
0:00:15.2]} 67. Kxg5 {[%clk 0:00:38.9]} 1/2-1/2